bitfinex/quotes_SOLUSD_20250222
["timestamp","ask_amount","ask_price","bid_price","bid_amount"]
[1740263766576,0.063,173.28,173.26,17.33865921]
[1740263766777,81.0,173.27,173.26,17.33865921]
[1740263768675,0.063,173.28,173.27,1.5816]
[1740263768869,0.063,173.28,173.27,13.14895921]
[1740263769073,0.0001,173.28,173.27,13.14895921]
[1740263769364,81.0,173.34,173.27,13.14895921]
[1740263769666,81.0,173.34,173.33,11.56735921]
[1740263770776,81.0,173.34,173.33,17.33665921]
[1740263771155,81.063,173.34,173.33,17.33665921]
[1740263775681,0.063,173.34,173.33,17.33665921]
[1740263775884,0.063,173.34,173.33,5.7693]
[1740263776068,0.063,173.34,173.33,17.33665921]
[1740263783765,0.063,173.34,173.31,11.56735921]
[1740263784065,0.063,173.34,173.3,11.56735921]
[1740263784281,0.063,173.34,173.31,11.56735921]
[1740263784497,0.063,173.34,173.3,11.56735921]
[1740263787586,81.0,173.33,173.3,11.56735921]
[1740263789593,86.7697,173.32,173.24,20.2028]
[1740263789774,81.0,173.31,173.26,11.56735921]
[1740263789974,81.0,173.31,173.25,11.56735921]
[1740263790575,81.0,173.31,173.26,11.56735921]
[1740263791308,86.77,173.31,173.26,11.56735921]
[1740263791995,86.77,173.31,173.25,5.7717]
[1740263792202,86.77,173.31,173.26,11.56735921]
[1740263792803,86.77,173.31,173.24,5.7723]
[1740263792973,86.77,173.31,173.26,11.56735921]
[1740263793480,81.0,173.3,173.26,11.56735921]
[1740263793794,81.0,173.3,173.26,11.59735921]
[1740263795197,81.0,173.3,173.26,17.36885921]
[1740263795975,81.0,173.3,173.27,11.56735921]
[1740263799603,81.0,173.29,173.27,11.56735921]
[1740263799897,81.0,173.29,173.26,11.59735921]
[1740263802404,81.0,173.28,173.26,0.03]
[1740263802582,81.0,173.27,173.26,0.03]
[1740263803495,24.41994886,173.3,173.26,0.03]
[1740263803702,35.98730807,173.3,173.26,0.03]
[1740263804289,8.015,173.27,173.26,0.03]
[1740263805409,13.7863,173.27,173.26,0.03]
[1740263805905,25.35365921,173.27,173.26,0.03]
[1740263807503,44.00330807,173.27,173.26,0.03]
[1740263813211,37.59370807,173.27,173.26,0.03]
[1740263813418,55.98830807,173.27,173.26,0.03]
[1740263816916,25.7713,173.27,173.26,0.03]
[1740263821221,37.33865921,173.27,173.26,0.03]
[1740263824921,25.7713,173.27,173.26,0.03]
[1740263831231,0.063,173.28,173.26,0.03]
[1740263832320,0.063,173.28,173.27,11.56735921]
[1740263835135,0.063,173.28,173.26,11.59735921]
[1740263844741,0.063,173.28,173.26,0.03]
[1740263846838,0.063,173.28,173.26,11.59735921]
[1740263851732,0.063,173.28,173.26,17.36895921]
[1740263854031,0.063,173.28,173.27,11.56735921]
[1740263857057,0.063,173.28,173.27,17.33865921]
[1740263873469,0.063,173.28,173.27,17.36865921]
[1740263898985,0.063,173.28,173.27,11.59735921]
[1740263899191,0.063,173.28,173.27,17.36865921]
[1740263927300,0.063,173.28,173.27,11.59735921]
[1740263928312,0.063,173.28,173.27,0.03]
[1740263931815,1.6879,173.28,173.27,0.03]
[1740263931991,7.6928,173.28,173.27,0.03]
[1740263933217,13.4638,173.28,173.27,0.03]
[1740263944735,25.03115921,173.28,173.27,0.03]
[1740263950426,43.68080807,173.28,173.27,0.03]
[1740263951232,19.64964886,173.27,173.26,0.0001]
[1740263951436,32.21700807,173.27,173.26,0.0001]
[1740263952523,37.98830807,173.27,173.26,0.0001]
[1740263963060,36.98830807,173.27,173.26,0.0001]
[1740263963732,35.98830807,173.27,173.26,0.0001]
[1740263967063,17.33865921,173.27,173.26,0.0001]
[1740263967228,5.7713,173.27,173.26,0.0001]
[1740263970333,17.33865921,173.27,173.26,0.0001]
[1740263978548,17.40165921,173.27,173.26,0.0001]
[1740263981455,5.8343,173.27,173.26,0.0001]
[1740263982360,0.063,173.27,173.26,0.0001]
[1740263996048,0.063,173.27,173.26,11.56745921]
[1740263996578,0.063,173.27,173.26,17.33905921]
[1740263997270,0.063,173.27,173.26,0.0001]
[1740264016475,5.8343,173.27,173.26,0.0001]
[1740264018285,0.063,173.27,173.26,0.0001]
[1740264032902,31.63035921,173.27,173.26,0.0001]
[1740264034293,37.40165921,173.27,173.26,0.0001]
[1740264043721,56.05130807,173.27,173.26,0.0001]
[1740264052620,58.88755731,173.27,173.26,0.0001]
[1740264066547,60.88755731,173.27,173.26,0.0001]
[1740264073347,59.88755731,173.27,173.26,0.0001]
[1740264073647,60.88755731,173.27,173.26,0.0001]
[1740264085036,69.96791374,173.27,173.26,0.0001]
[1740264086556,60.88755731,173.27,173.26,0.0001]
[1740264087565,63.24535975,173.27,173.26,0.0001]
[1740264092773,60.88755731,173.27,173.26,0.0001]
[1740264093848,79.04827018,173.27,173.26,0.0001]
[1740264094070,77.04827018,173.27,173.26,0.0001]
[1740264094254,78.04827018,173.27,173.26,0.0001]
[1740264096368,77.04827018,173.27,173.26,0.0001]
[1740264096772,58.88755731,173.27,173.26,0.0001]
[1740264099374,59.88755731,173.27,173.26,0.0001]
[1740264100876,68.98287992,173.27,173.26,0.0001]
[1740264101577,67.98287992,173.27,173.26,0.0001]
[1740264102175,25.8343,173.27,173.26,0.0001]
[1740264119185,37.40165921,173.27,173.26,0.0001]
[1740264122702,25.8343,173.27,173.26,0.0001]
[1740264133097,37.40165921,173.27,173.26,0.0001]
[1740264143710,40.27433181,173.27,173.26,0.0001]
[1740264148707,58.92398067,173.27,173.26,0.0001]
[1740264169838,60.92398067,173.27,173.26,0.0001]
[1740264172316,1.0,173.22,173.18,0.03]
[1740264172518,4.12,173.22,173.18,0.03]
[1740264172836,11.56735921,173.2,173.18,0.03]
[1740264173249,11.56735921,173.21,173.18,0.03]
[1740264173644,20.0,173.19,173.18,0.03]
[1740264176349,25.774,173.19,173.18,0.03]
[1740264179442,37.34135921,173.19,173.18,0.03]
[1740264180351,55.99100807,173.19,173.18,0.03]
[1740264181443,37.34135921,173.19,173.18,0.03]
[1740264184746,25.774,173.19,173.18,0.03]
[1740264185954,37.34135921,173.19,173.18,0.03]
[1740264187359,55.99100807,173.19,173.18,0.03]
[1740264187555,37.34135921,173.19,173.18,0.03]
[1740264188942,55.99100807,173.19,173.18,0.03]
[1740264190046,37.34135921,173.19,173.18,0.03]
[1740264190255,25.774,173.19,173.18,0.03]
[1740264191152,37.34135921,173.19,173.18,0.03]
[1740264192565,5.774,173.19,173.18,0.03]
[1740264194368,20.0,173.19,173.18,0.03]
[1740264194554,5.7736,173.2,173.18,0.03]
[1740264198664,20.0,173.19,173.18,0.03]
[1740264198956,5.7733,173.21,173.18,0.03]
[1740264199155,20.0,173.2,173.18,0.03]
[1740264200170,31.56735921,173.22,173.18,0.03]
[1740264200366,5.7733,173.21,173.18,0.03]
[1740264202956,5.7726,173.23,173.18,0.03]
[1740264203467,81.0,173.22,173.18,0.03]
[1740264204060,5.7733,173.21,173.18,0.03]
[1740264206549,5.7733,173.21,173.18,11.59735921]
[1740264206550,81.0,173.21,173.18,11.59735921]
[1740264213972,81.0,173.21,173.18,17.37145921]
[1740264214177,81.0,173.21,173.19,11.56735921]
[1740264215783,86.772,173.25,173.2,11.56735921]
[1740264216871,86.772,173.25,173.19,17.34125921]
[1740264218176,86.772,173.25,173.2,11.56735921]
[1740264223479,86.772,173.25,173.19,17.34125921]
[1740264226388,86.772,173.25,173.19,11.56735921]
[1740264227694,86.772,173.25,173.2,11.56735921]
[1740264227695,81.0,173.25,173.2,11.56735921]
[1740264227902,86.772,173.25,173.2,11.56735921]
[1740264228677,81.0,173.25,173.2,11.56735921]
[1740264228996,81.0,173.25,173.2,13.20695921]
[1740264229580,81.0,173.25,173.2,18.98045921]
[1740264230001,81.0,173.25,173.21,11.56735921]
[1740264230701,81.0,173.25,173.22,11.56735921]
[1740264230992,0.063,173.26,173.22,11.56735921]
[1740264231188,5.8346,173.26,173.22,11.56735921]
[1740264233685,5.8346,173.26,173.21,4.12]
[1740264233885,5.8346,173.26,173.21,15.68735921]
[1740264236279,5.8346,173.26,173.21,21.46065921]
[1740264236606,0.063,173.26,173.22,11.56735921]
[1740264241192,0.063,173.26,173.23,11.56735921]
[1740264245337,0.063,173.26,173.22,11.56735921]
[1740264246344,0.063,173.26,173.22,17.34025921]
[1740264249437,0.063,173.26,173.22,11.56735921]
[1740264251460,0.063,173.26,173.22,11.59735921]
[1740264261067,0.063,173.26,173.25,29.0018]
[1740264261374,0.063,173.26,173.25,49.51687876]
[1740264262672,0.063,173.26,173.25,66.85623797]
[1740264266566,0.063,173.26,173.25,69.68115047]
[1740264266887,0.063,173.26,173.25,115.95058731]
[1740264267168,0.063,173.26,173.25,115.08515741]
[1740264267383,0.063,173.26,173.25,69.68103844]
[1740264267548,0.063,173.26,173.25,115.95047528]
[1740264267970,0.063,173.26,173.25,69.68103844]
[1740264268280,0.063,173.26,173.25,104.38103844]
[1740264268583,0.063,173.26,173.25,150.65047528]
[1740264268881,0.063,173.26,173.25,149.78515741]
[1740264269750,0.063,173.26,173.25,103.51572057]
[1740264269951,0.063,173.26,173.25,104.38106875]
[1740264270987,0.063,173.26,173.25,106.64037705]
[1740264271146,0.063,173.26,173.25,152.90981389]
[1740264271343,0.063,173.26,173.25,152.04446571]
[1740264271548,0.063,173.26,173.25,149.78515741]
[1740264271859,0.063,173.26,173.25,231.68515741]
[1740264272057,0.063,173.26,173.25,185.41572057]
[1740264272361,0.063,173.34,173.28,1.0]
[1740264272562,0.063,173.34,173.3,11.56735921]
[1740264273693,0.063,173.34,173.3,17.33765921]
[1740264283205,0.063,173.34,173.3,20.25364906]
[1740264299302,0.063,173.34,173.3,39.90329792]
[1740264301885,0.063,173.34,173.3,38.90329792]
[1740264302088,0.063,173.34,173.3,39.90329792]
[1740264304211,0.063,173.34,173.3,38.90329792]
[1740264304413,0.063,173.34,173.29,21.43785921]
[1740264306889,0.063,173.34,173.3,18.64964886]
[1740264307088,0.063,173.34,173.3,24.41994886]
[1740264308094,0.063,173.34,173.3,28.51994886]
[1740264314057,0.063,173.34,173.3,5.7703]
[1740264323352,0.063,173.34,173.29,21.43795921]
[1740264323556,0.063,173.34,173.29,5.7706]
[1740264324327,11.63035921,173.34,173.28,0.03]
[1740264325052,5.7693,173.33,173.28,0.03]
[1740264325256,98.33665921,173.33,173.28,0.03]
[1740264325449,1.5087,173.32,173.28,0.03]
[1740264326752,7.2783,173.32,173.28,0.03]
[1740264331139,1.5087,173.32,173.28,0.03]
[1740264333140,7.2784,173.32,173.28,0.03]
[1740264334065,1.5087,173.32,173.28,0.03]
[1740264335659,7.2784,173.32,173.28,0.03]
[1740264336250,18.84575921,173.32,173.28,0.03]
[1740264337168,81.0,173.3,173.28,0.03]
[1740264357666,81.063,173.3,173.28,0.03]
[1740264367487,86.8333,173.3,173.28,0.03]
[1740264369389,98.40065921,173.3,173.28,0.03]
[1740264371086,81.0,173.29,173.28,0.03]
[1740264371886,86.7706,173.29,173.28,0.03]
[1740264372191,98.33795921,173.29,173.28,0.03]
[1740264375887,17.33795921,173.29,173.28,0.03]
[1740264376078,5.7706,173.29,173.28,0.03]
[1740264376272,17.33795921,173.29,173.28,0.03]
[1740264381193,17.40095921,173.29,173.28,0.03]
[1740264388487,20.22833441,173.29,173.28,0.03]
[1740264389478,17.40095921,173.29,173.28,0.03]
[1740264389675,5.8336,173.29,173.28,0.03]
[1740264389879,0.063,173.29,173.28,0.03]
[1740264394688,11.63035921,173.29,173.28,0.03]
[1740264397782,17.40095921,173.29,173.28,0.03]
[1740264400792,0.063,173.29,173.28,0.03]
[1740264429134,11.63035921,173.29,173.28,0.03]
[1740264429329,17.40095921,173.29,173.28,0.03]
[1740264441665,20.063,173.29,173.28,0.03]
[1740264441849,31.63035921,173.29,173.28,0.03]
[1740264443337,37.40095921,173.29,173.28,0.03]
[1740264450455,40.24810916,173.29,173.28,0.03]
[1740264454255,54.67470916,173.29,173.22,0.03]
[1740264454435,11.56735921,173.26,173.22,0.03]
[1740264456072,11.56735921,173.27,173.22,0.03]
[1740264456239,17.33865921,173.27,173.22,0.03]
[1740264458959,80.56735921,173.26,173.22,0.03]
[1740264459153,11.56735921,173.25,173.22,0.03]
[1740264459373,80.56735921,173.24,173.22,0.03]
[1740264467468,92.13471842,173.23,173.22,0.03]
[1740264467672,80.56735921,173.23,173.22,0.03]
[1740264468174,92.13471842,173.23,173.22,0.03]
[1740264469468,97.90731842,173.23,173.22,0.03]
[1740264470572,86.33995921,173.23,173.22,0.03]
[1740264470966,5.7726,173.23,173.22,0.03]
[1740264471163,17.33975921,173.24,173.22,0.03]
[1740264474377,11.56735921,173.25,173.22,0.03]
[1740264475075,11.56735921,173.24,173.22,0.03]
[1740264479057,17.33975921,173.24,173.22,0.03]
[1740264479379,5.7724,173.24,173.22,0.03]
[1740264480061,11.56735921,173.25,173.22,0.03]
[1740264480062,14.4283,173.27,173.22,0.03]
[1740264480263,5.7716,173.26,173.22,0.03]
[1740264480878,86.7716,173.26,173.22,0.03]
[1740264481183,98.33895921,173.26,173.22,0.03]
[1740264484792,11.56735921,173.25,173.22,0.03]
[1740264485701,81.0,173.24,173.22,0.03]
[1740264490395,86.7723,173.24,173.22,0.03]
[1740264500497,11.56735921,173.23,173.22,0.03]
[1740264501409,17.33995921,173.23,173.22,0.03]
[1740264505510,11.56735921,173.24,173.22,0.03]
[1740264506197,5.7716,173.26,173.22,0.03]
[1740264506512,11.56735921,173.25,173.22,0.03]
[1740264507611,5.7723,173.24,173.22,0.03]
[1740264554654,20.201,173.26,173.22,0.03]
[1740264563249,11.56735921,173.25,173.22,0.03]
[1740264563960,5.7723,173.24,173.22,0.03]
[1740264565767,17.33965921,173.24,173.22,0.03]
[1740264568352,11.56735921,173.23,173.22,0.03]
[1740264569567,17.33995921,173.23,173.22,0.03]
[1740264575986,20.0,173.21,173.2,0.03]
[1740264576159,50.21700807,173.21,173.18,0.03]
[1740264576482,11.56735921,173.19,173.18,0.03]
[1740264578161,17.34135921,173.19,173.18,0.03]
[1740264578877,99.64964886,173.18,173.17,0.063]
[1740264579079,115.35700807,173.18,173.17,0.063]
[1740264580054,121.13130807,173.18,173.17,0.063]
[1740264581382,123.95271069,173.18,173.17,0.063]
[1740264583863,42.95271069,173.18,173.17,0.063]
[1740264584585,21.48165921,173.18,173.17,0.063]
[1740264585165,5.7743,173.18,173.17,0.063]
[1740264585366,17.34165921,173.18,173.17,0.063]
[1740264586387,5.7743,173.18,173.17,0.063]
[1740264589183,17.34165921,173.18,173.17,0.063]
[1740264589973,17.40465921,173.18,173.11,22.59937786]
[1740264591786,20.0,173.16,173.12,11.56735921]
[1740264595102,5.8373,173.18,173.12,11.56735921]
[1740264595902,81.0,173.17,173.12,11.56735921]
[1740264596808,86.7748,173.17,173.12,11.56735921]
[1740264597102,86.7748,173.17,173.11,22.59937786]
[1740264597999,86.7748,173.17,173.11,5.25541865]
[1740264598000,98.34215921,173.17,173.11,5.25541865]
[1740264598401,86.7748,173.17,173.11,5.25541865]
[1740264599602,86.7748,173.17,173.11,11.03191865]
[1740264599906,86.7748,173.17,173.11,5.25541865]
[1740264601619,81.0,173.16,173.11,11.03201865]
[1740264602113,81.0,173.16,173.11,5.28541865]
[1740264602309,81.0,173.16,173.11,1.14541865]
[1740264604312,86.775,173.16,173.11,6.92201865]
[1740264604813,86.775,173.16,173.11,0.03]
[1740264605896,98.34235921,173.16,173.11,0.03]
[1740264606197,112.77985921,173.16,173.11,0.03]
[1740264607105,11.56735921,173.13,173.11,0.03]
[1740264607321,81.0,173.12,173.11,0.03]
[1740264607992,5.7756,173.14,173.11,0.03]
[1740264608194,17.34295921,173.14,173.11,0.03]
[1740264611708,5.7756,173.14,173.11,0.03]
[1740264622121,17.34295921,173.14,173.11,0.03]
[1740264623826,5.7756,173.14,173.11,0.03]
[1740264629736,11.56735921,173.14,173.11,0.03]
[1740264630124,11.56735921,173.13,173.11,0.03]
[1740264631450,81.0,173.12,173.11,0.03]
[1740264631951,86.7763,173.12,173.11,0.03]
[1740264637370,5.7763,173.12,173.11,0.03]
[1740264638871,20.2136,173.15,173.11,0.03]
[1740264639672,5.7753,173.15,173.11,0.03]
[1740264640041,5.7753,173.15,173.11,11.59735921]
[1740264643443,5.7753,173.15,173.11,0.03]
[1740264646168,81.0,173.14,173.11,0.03]
[1740264646357,86.7759,173.14,173.11,0.03]
[1740264646554,86.7759,173.14,173.09,4.12]
[1740264646758,87.7759,173.14,173.1,11.56735921]
[1740264647375,1.0,173.13,173.1,11.56735921]
[1740264648367,87.7759,173.14,173.09,11.56735921]
[1740264648870,1.0,173.13,173.09,11.56735921]
[1740264649066,1.0,173.13,173.08,9.8975]
[1740264649067,87.7757,173.14,173.1,11.56735921]
[1740264649446,1.0,173.13,173.1,11.56735921]
[1740264650169,1.063,173.13,173.1,11.56735921]
[1740264650556,0.063,173.13,173.1,11.56735921]
[1740264650756,1.063,173.13,173.1,11.56735921]
[1740264651169,0.063,173.13,173.1,11.56735921]
[1740264651356,6.839,173.13,173.1,11.56735921]
[1740264651557,0.063,173.13,173.1,11.56735921]
[1740264651758,5.839,173.13,173.11,11.56735921]
[1740264652054,6.839,173.13,173.11,11.56735921]
[1740264652260,6.839,173.13,173.1,11.56735921]
[1740264662175,5.839,173.13,173.1,11.56735921]
[1740264662359,6.839,173.13,173.1,11.56735921]
[1740264668486,6.839,173.13,173.09,11.56735921]
[1740264669787,5.839,173.13,173.09,11.56735921]
[1740264669989,6.839,173.13,173.09,11.56735921]
[1740264670191,6.839,173.13,173.08,11.56735921]
[1740264671794,5.839,173.13,173.08,11.56735921]
[1740264673079,5.839,173.13,173.08,17.34495921]
[1740264673586,6.839,173.13,173.08,17.34495921]
[1740264673892,5.839,173.13,173.08,17.34495921]
[1740264675905,81.0,173.12,173.08,17.34495921]
[1740264694635,81.0,173.12,173.08,5.7776]
[1740264695641,81.0,173.12,173.06,15.71735921]
[1740264695834,81.0,173.12,173.07,5.778]
[1740264697433,81.063,173.12,173.07,5.778]
[1740264698936,81.063,173.12,173.08,11.56735921]
[1740264699140,81.063,173.12,173.08,17.34475921]
[1740264708445,81.063,173.12,173.1,11.56735921]
[1740264715148,81.063,173.12,173.11,11.56735921]
[1740264715857,81.063,173.12,173.1,11.56735921]
[1740264729659,81.063,173.12,173.11,11.56735921]
[1740264732758,81.063,173.12,173.1,11.56735921]
[1740264738254,81.063,173.12,173.08,17.34475921]
[1740264746670,1.5891,173.11,173.06,0.03]
[1740264746848,81.0,173.1,173.06,11.59735921]
[1740264750477,81.0,173.1,173.06,0.03]
[1740264755070,87.777,173.1,173.06,0.03]
[1740264755267,1.0,173.07,173.06,0.03]
[1740264757160,1.0,173.08,173.06,0.03]
[1740264757660,1.0,173.07,173.06,0.03]
[1740264758191,1.0,173.08,173.06,0.03]
[1740264759189,1.0,173.07,173.06,0.03]
[1740264763091,1.0,173.08,173.06,0.03]
[1740264763393,1.0,173.07,173.06,0.03]
[1740264770604,1.0,173.08,173.06,0.03]
[1740264770903,1.0,173.07,173.06,0.03]
[1740264779113,1.063,173.07,173.06,0.03]
[1740264784402,0.063,173.07,173.06,0.03]
[1740264784609,1.063,173.07,173.06,0.03]
[1740264807763,0.063,173.07,173.06,0.03]
[1740264807973,0.063,173.07,173.06,11.59735921]
[1740264809259,0.063,173.07,173.06,30.24700807]
[1740264809783,0.063,173.07,173.06,36.02530807]
[1740264811662,0.063,173.07,173.06,37.02530807]
[1740264813181,0.063,173.07,173.06,83.29474491]
[1740264814860,0.063,173.07,173.06,37.02530807]
[1740264820979,0.063,173.07,173.06,83.29474491]
[1740264821586,0.063,173.1,173.09,21.0]
[1740264821773,0.063,173.1,173.09,32.56735921]
[1740264822971,0.063,173.1,173.09,56.99430807]
[1740264825257,0.063,173.1,173.09,59.84947138]
[1740264825667,0.063,173.1,173.09,54.07217138]
[1740264829084,0.063,173.1,173.09,50.21700807]
[1740264829267,0.063,173.1,173.09,54.33700807]
[1740264830489,0.063,173.1,173.09,20.0]
[1740264830687,0.063,173.1,173.08,11.56735921]
[1740264831560,0.063,173.1,173.09,11.56735921]
[1740264836500,0.063,173.1,173.08,11.56735921]
[1740264850802,0.063,173.1,173.07,0.03]
[1740264858919,1.063,173.1,173.07,0.03]
[1740264860505,1.6429,173.09,173.07,0.03]
[1740264860710,2.6429,173.09,173.07,0.03]
[1740264864302,1.6429,173.09,173.07,0.03]
[1740264864713,2.6429,173.09,173.07,0.03]
[1740264865021,1.6429,173.09,173.07,0.03]
[1740264866013,2.6429,173.09,173.07,0.03]
[1740264867219,0.063,173.1,173.07,11.59735921]
[1740264867418,0.063,173.1,173.08,11.56735921]
[1740264867593,0.063,173.1,173.09,11.56735921]
[1740264868009,0.063,173.1,173.08,17.34475921]
[1740264868527,0.063,173.1,173.08,11.56735921]
[1740264871422,0.063,173.1,173.07,11.59735921]
[1740264873901,1.063,173.1,173.07,11.59735921]
[1740264874824,1.063,173.1,173.07,0.03]
[1740264876326,0.063,173.1,173.07,11.59735921]
[1740264882831,0.063,173.1,173.07,5.59735921]
[1740264885630,0.063,173.1,173.07,11.37525921]
[1740264886301,0.063,173.1,173.08,18.64964886]
[1740264886832,0.063,173.1,173.09,11.56735921]
[1740264888923,0.063,173.1,173.08,35.99450807]
[1740264890737,0.063,173.1,173.08,30.21700807]
[1740264895939,0.063,173.1,173.08,35.99450807]
[1740264898139,0.063,173.1,173.08,18.64964886]
[1740264898342,0.063,173.1,173.08,30.21700807]
[1740264901129,0.063,173.1,173.08,35.99450807]
[1740264903133,0.063,173.1,173.09,30.21700807]
[1740264905251,0.063,173.1,173.09,35.99430807]
[1740264906437,0.063,173.1,173.09,36.99430807]
[1740264909445,0.063,173.1,173.09,35.99430807]
[1740264909847,0.063,173.1,173.09,18.64964886]
[1740264914573,0.063,173.1,173.08,4.12]
[1740264915665,0.063,173.1,173.08,18.64964886]
[1740264919776,0.063,173.1,173.07,11.59735921]
[1740264920071,0.063,173.1,173.07,0.03]
[1740264920258,0.063,173.1,173.07,18.67964886]
[1740264920463,0.063,173.1,173.07,24.45754886]
[1740264920976,1.7265,173.1,173.07,0.03]
[1740264923381,2.7265,173.1,173.07,0.03]
[1740264923873,1.0,173.09,173.07,0.03]
[1740264926298,7.5035,173.1,173.07,0.03]
[1740264926299,1.0,173.08,173.07,0.03]
[1740264928402,6.7776,173.08,173.07,0.03]
[1740264928690,24.86425921,173.08,173.07,0.03]
[1740264936493,13.2969,173.08,173.07,0.03]
[1740264945100,13.3599,173.08,173.07,0.03]
[1740264957127,0.063,173.08,173.07,0.03]
[1740264957825,0.063,173.08,173.07,11.59735921]
[1740264959309,0.063,173.08,173.07,17.37535921]
[1740264968416,0.063,173.08,173.07,5.808]
[1740264973614,0.063,173.08,173.07,0.03]
[1740264974229,0.063,173.08,173.07,11.59735921]
[1740264977145,0.063,173.08,173.07,17.37535921]
[1740264978043,0.063,173.08,173.07,37.37535921]
[1740264978923,0.063,173.08,173.07,56.02500807]
[1740264985849,0.063,173.08,173.07,44.45764886]
[1740264987044,0.063,173.08,173.07,20.03]
[1740264996245,0.063,173.08,173.07,25.808]
[1740264996544,0.063,173.08,173.07,56.02500807]
[1740264997041,0.063,173.08,173.07,37.37535921]
[1740264997248,0.063,173.08,173.07,20.03]
[1740265005454,0.063,173.08,173.07,25.808]
[1740265016557,0.063,173.08,173.07,37.37535921]
[1740265021056,0.063,173.08,173.07,25.808]
[1740265028373,0.063,173.08,173.07,20.03]
[1740265028594,1.063,173.08,173.07,0.03]
[1740265028872,12.63035921,173.08,173.07,0.03]
[1740265029177,2.5439,173.07,173.06,0.03]
[1740265029387,14.11125921,173.07,173.06,0.03]
[1740265029966,19.88925921,173.07,173.06,0.03]
[1740265043893,29.0122,173.05,173.04,0.0001]
[1740265044200,1.0,172.96,172.93,11.59735921]
[1740265044379,1.0,172.95,172.93,0.03]
[1740265044783,12.56735921,172.94,172.93,0.03]
[1740265045595,18.34965921,172.94,172.93,0.03]
[1740265046093,12.56735921,172.94,172.93,0.03]
[1740265046405,18.34965921,172.94,172.93,0.03]
[1740265048898,12.56735921,172.94,172.93,0.03]
[1740265051486,1.0,172.94,172.93,0.03]
[1740265051693,1.0,172.95,172.93,0.03]
[1740265051894,12.56735921,172.97,172.93,0.03]
[1740265052076,1.0,172.96,172.93,0.03]
[1740265052281,1.0,172.97,172.93,0.03]
[1740265052682,12.56735921,172.97,172.93,0.03]
[1740265053200,1.0,172.96,172.93,0.03]
[1740265053587,12.56735921,172.97,172.93,0.03]
[1740265054086,1.0,172.96,172.93,0.03]
[1740265054807,12.56735921,172.97,172.93,0.03]
[1740265054985,1.0,172.96,172.93,0.03]
[1740265055699,1.0,172.94,172.93,0.03]
[1740265056597,93.56735921,172.96,172.93,0.03]
[1740265056911,1.0,172.94,172.93,0.03]
[1740265059312,81.0,172.96,172.93,0.03]
[1740265059313,1.0,172.95,172.93,0.03]
[1740265062420,81.0,172.94,172.93,0.03]
[1740265068306,81.0,172.94,172.91,9.59735921]
[1740265069217,81.0,172.94,172.92,5.783]
[1740265070319,81.0,172.94,172.89,17.38135921]
[1740265071021,81.0,172.94,172.9,11.56735921]
[1740265071022,82.0,172.94,172.9,11.56735921]
[1740265071605,81.0,172.94,172.91,11.56735921]
[1740265072710,81.0,172.94,172.91,17.35035921]
[1740265073420,81.0,172.94,172.91,5.783]
[1740265074022,81.0,172.93,172.91,5.783]
[1740265074399,81.0,172.93,172.91,17.35035921]
[1740265074711,81.0,172.93,172.92,11.56735921]